[Event "Late-Titled-Tuesday-Blitz-November-28-2023"]
[Site "Chess.com"]
[Date "2023.11.28"]
[Round "5"]
[White "Koksal06"]
[Black "eljanov"]
[Result "0-1"]
[WhiteElo "2625"]
[BlackElo "2874"]
[TimeControl "180+1"]
[EndTime "14:54:10 PST"]
[Termination "eljanov won by checkmate"]

1. d4 {[%clk 0:02:57.1]} 1... d5 {[%clk 0:02:58.2]} 2. c4 {[%clk 0:02:57.2]}
2... e6 {[%clk 0:02:58.5]} 3. Nc3 {[%clk 0:02:57.1]} 3... Nf6 {[%clk 0:02:58.2]}
4. Nf3 {[%clk 0:02:57.2]} 4... Nbd7 {[%clk 0:02:55]} 5. Bg5 {[%clk 0:02:56.3]}
5... h6 {[%clk 0:02:54]} 6. Bh4 {[%clk 0:02:53.5]} 6... Be7 {[%clk 0:02:54]} 7.
e3 {[%clk 0:02:53.4]} 7... O-O {[%clk 0:02:53.8]} 8. Rc1 {[%clk 0:02:52.6]} 8...
c6 {[%clk 0:02:51.8]} 9. Bd3 {[%clk 0:02:50.6]} 9... Ne8 {[%clk 0:02:41.5]} 10.
Bg3 {[%clk 0:02:49.3]} 10... Nd6 {[%clk 0:02:28.5]} 11. c5 {[%clk 0:02:38.4]}
11... Nf5 {[%clk 0:02:28.4]} 12. Bxf5 {[%clk 0:02:38.4]} 12... exf5 {[%clk
0:02:28.5]} 13. O-O {[%clk 0:02:38.8]} 13... Nf6 {[%clk 0:02:23.8]} 14. b4
{[%clk 0:02:37.6]} 14... Ne4 {[%clk 0:02:21.2]} 15. a4 {[%clk 0:02:33.9]} 15...
a6 {[%clk 0:02:16]} 16. Qb3 {[%clk 0:02:23.2]} 16... Bd7 {[%clk 0:02:12.1]} 17.
Be5 {[%clk 0:01:56.8]} 17... f6 {[%clk 0:02:05.4]} 18. Bg3 {[%clk 0:01:56.7]}
18... g5 {[%clk 0:02:05.6]} 19. b5 {[%clk 0:01:46.8]} 19... h5 {[%clk
0:01:57.9]} 20. bxc6 {[%clk 0:01:26.2]} 20... bxc6 {[%clk 0:01:57.4]} 21. Nxe4
{[%clk 0:01:25.9]} 21... fxe4 {[%clk 0:01:56.7]} 22. Nd2 {[%clk 0:01:26.6]}
22... h4 {[%clk 0:01:52.1]} 23. Bd6 {[%clk 0:01:25.7]} 23... h3 {[%clk
0:01:45.5]} 24. Nxe4 {[%clk 0:00:56.8]} 24... hxg2 {[%clk 0:01:39.2]} 25. Rfe1
{[%clk 0:00:57.1]} 25... Kg7 {[%clk 0:01:36.7]} 26. Bxe7 {[%clk 0:00:53.1]}
26... Qxe7 {[%clk 0:01:36.8]} 27. Nd6 {[%clk 0:00:53.3]} 27... Rh8 {[%clk
0:01:33.5]} 28. e4 {[%clk 0:00:50.2]} 28... Rh3 {[%clk 0:01:22]} 29. Rc3 {[%clk
0:00:48.1]} 29... Rah8 {[%clk 0:01:18.6]} 30. Rxh3 {[%clk 0:00:46.5]} 30... Rxh3
{[%clk 0:01:19.5]} 31. Qb1 {[%clk 0:00:34.3]} 31... dxe4 {[%clk 0:00:49.5]} 32.
Rxe4 {[%clk 0:00:27.4]} 32... Qd8 {[%clk 0:00:49.8]} 33. Qe1 {[%clk 0:00:23.7]}
33... Kf8 {[%clk 0:00:42.9]} 34. Kxg2 {[%clk 0:00:15.2]} 34... Rb3 {[%clk
0:00:40.6]} 35. f3 {[%clk 0:00:10.4]} 35... Qb8 {[%clk 0:00:36.1]} 36. Re7
{[%clk 0:00:08.2]} 36... Rb1 {[%clk 0:00:23]} 37. Rf7+ {[%clk 0:00:07.5]} 37...
Kg8 {[%clk 0:00:23.4]} 38. Qe2 {[%clk 0:00:03.1]} 38... Rb2 {[%clk 0:00:23.1]}
39. Qxb2 {[%clk 0:00:03.3]} 39... Qxb2+ {[%clk 0:00:23.2]} 40. Kg3 {[%clk
0:00:04.2]} 40... Be6 {[%clk 0:00:21.4]} 41. Rxf6 {[%clk 0:00:04.5]} 41... Bd5
{[%clk 0:00:21.8]} 42. Rg6+ {[%clk 0:00:04.9]} 42... Kh7 {[%clk 0:00:21.8]} 43.
Rxg5 {[%clk 0:00:05.4]} 43... Qxd4 {[%clk 0:00:21.5]} 44. Rg4 {[%clk 0:00:04.9]}
44... Qg1+ {[%clk 0:00:21.2]} 45. Kh4 {[%clk 0:00:05]} 45... Qxh2+ {[%clk
0:00:21.1]} 46. Kg5 {[%clk 0:00:05.9]} 46... Qe5+ {[%clk 0:00:20.3]} 47. Nf5
{[%clk 0:00:06.5]} 47... Be6 {[%clk 0:00:20]} 48. Rh4+ {[%clk 0:00:06.8]} 48...
Kg8 {[%clk 0:00:20]} 49. Rf4 {[%clk 0:00:07.7]} 49... Qxc5 {[%clk 0:00:20.1]}
50. Kf6 {[%clk 0:00:07.6]} 50... Bxf5 {[%clk 0:00:19.9]} 51. Rxf5 {[%clk
0:00:08.5]} 51... Qd4+ {[%clk 0:00:19.8]} 52. Kg6 {[%clk 0:00:08.8]} 52... Qxa4
{[%clk 0:00:19.6]} 53. f4 {[%clk 0:00:08.7]} 53... Qe4 {[%clk 0:00:19.5]} 54.
Kg5 {[%clk 0:00:08.6]} 54... Kg7 {[%clk 0:00:19.4]} 55. Re5 {[%clk 0:00:08.6]}
55... Qg2+ {[%clk 0:00:19.7]} 56. Kf5 {[%clk 0:00:09.1]} 56... Qg6# {[%clk
0:00:19.8]} 0-1

[Event "Late-Titled-Tuesday-Blitz-November-28-2023"]
[Site "Chess.com"]
[Date "2023.11.28"]
[Round "5"]
[White "AsaHoffmann"]
[Black "Siemba"]
[Result "0-1"]
[WhiteElo "2336"]
[BlackElo "2602"]
[TimeControl "180+1"]
[EndTime "14:54:10 PST"]
[Termination "Siemba won by resignation"]

1. d4 {[%clk 0:02:56.8]} 1... Nf6 {[%clk 0:02:59.4]} 2. Bg5 {[%clk 0:02:52.7]}
2... Ne4 {[%clk 0:02:59.3]} 3. Bf4 {[%clk 0:02:52.3]} 3... c5 {[%clk 0:02:59.7]}
4. f3 {[%clk 0:02:52.2]} 4... Nf6 {[%clk 0:02:59.9]} 5. dxc5 {[%clk 0:02:51.5]}
5... b6 {[%clk 0:03:00.4]} 6. e4 {[%clk 0:02:50.7]} 6... bxc5 {[%clk 0:03:00.2]}
7. Nc3 {[%clk 0:02:50.5]} 7... Nc6 {[%clk 0:03:00.4]} 8. Bc4 {[%clk 0:02:46.7]}
8... d6 {[%clk 0:02:53.7]} 9. Nge2 {[%clk 0:02:41]} 9... e5 {[%clk 0:02:53.4]}
10. Bg5 {[%clk 0:02:39.3]} 10... Be7 {[%clk 0:02:48.7]} 11. Bxf6 {[%clk
0:02:38.9]} 11... gxf6 {[%clk 0:02:48.3]} 12. Qd5 {[%clk 0:02:36.8]} 12... Nb4
{[%clk 0:02:16.6]} 13. Qxf7+ {[%clk 0:02:34.5]} 13... Kd7 {[%clk 0:02:17.1]} 14.
Bb5+ {[%clk 0:02:29.8]} 14... Kc7 {[%clk 0:02:16.4]} 15. Nd5+ {[%clk 0:02:29.3]}
15... Nxd5 {[%clk 0:02:16.5]} 16. Qxd5 {[%clk 0:02:28.7]} 16... Bb7 {[%clk
0:02:17.1]} 17. Qc4 {[%clk 0:02:22]} 17... Qg8 {[%clk 0:02:16]} 18. Qxg8 {[%clk
0:02:20.4]} 18... Rhxg8 {[%clk 0:02:16.9]} 19. g4 {[%clk 0:02:16]} 19... h5
{[%clk 0:02:17]} 20. h3 {[%clk 0:02:15.8]} 20... f5 {[%clk 0:02:12.7]} 21. gxf5
{[%clk 0:02:11.8]} 21... Rg2 {[%clk 0:02:12.7]} 22. O-O-O {[%clk 0:02:07.8]}
22... Rb8 {[%clk 0:02:09]} 23. Rdg1 {[%clk 0:02:05]} 23... Rbg8 {[%clk
0:01:54.5]} 24. Rxg2 {[%clk 0:02:02.1]} 24... Rxg2 {[%clk 0:01:55.4]} 25. Rg1
{[%clk 0:01:59.8]} 25... Rxg1+ {[%clk 0:01:50.2]} 26. Nxg1 {[%clk 0:01:58.9]}
26... d5 {[%clk 0:01:50.9]} 27. exd5 {[%clk 0:01:54.7]} 27... Bxd5 {[%clk
0:01:51.8]} 28. Bd3 {[%clk 0:01:54.1]} 28... Bg5+ {[%clk 0:01:49]} 29. Kd1
{[%clk 0:01:53.3]} 29... Be3 {[%clk 0:01:49.7]} 30. Ne2 {[%clk 0:01:42]} 30...
Bxf3 {[%clk 0:01:48.8]} 31. f6 {[%clk 0:01:35.8]} 31... e4 {[%clk 0:01:48.1]}
32. Bc4 {[%clk 0:01:32.4]} 32... Kd6 {[%clk 0:01:45.3]} 33. Ke1 {[%clk
0:01:30.5]} 33... Bg5 {[%clk 0:01:42.6]} 34. f7 {[%clk 0:01:25.6]} 34... Ke7
{[%clk 0:01:42.9]} 35. Nc3 {[%clk 0:01:17]} 35... Bg2 {[%clk 0:01:19.1]} 36. Kf2
{[%clk 0:01:14.1]} 36... Bxh3 {[%clk 0:01:11.3]} 37. Nxe4 {[%clk 0:01:13.8]}
37... Bc1 {[%clk 0:01:01.7]} 38. b3 {[%clk 0:01:08.5]} 38... Bf5 {[%clk
0:00:57]} 39. Nxc5 {[%clk 0:01:04.7]} 39... Bxc2 {[%clk 0:00:57.1]} 40. Kg3
{[%clk 0:00:50.6]} 40... Ba3 {[%clk 0:00:52.9]} 41. Nb7 {[%clk 0:00:44.8]} 41...
Be4 {[%clk 0:00:50.8]} 42. Na5 {[%clk 0:00:43.6]} 42... Bb4 {[%clk 0:00:49.4]}
43. Kf4 {[%clk 0:00:39.2]} 43... Bh1 {[%clk 0:00:48.1]} 44. Kg5 {[%clk
0:00:33.8]} 44... Bxa5 {[%clk 0:00:46.6]} 45. Kxh5 {[%clk 0:00:33.8]} 45... Bc3
{[%clk 0:00:42.7]} 46. Kg5 {[%clk 0:00:33]} 46... Be4 {[%clk 0:00:36.5]} 47. Kf4
{[%clk 0:00:31.5]} 47... Bg6 {[%clk 0:00:36.9]} 48. Ke3 {[%clk 0:00:30.5]} 48...
Be5 {[%clk 0:00:27.2]} 49. a4 {[%clk 0:00:27.4]} 49... Bc3 {[%clk 0:00:23.3]}
50. Kf4 {[%clk 0:00:22.2]} 50... Bxf7 {[%clk 0:00:22.5]} 51. Bxf7 {[%clk
0:00:21.9]} 51... Kxf7 {[%clk 0:00:23.4]} 52. Ke4 {[%clk 0:00:21.7]} 52... Ke6
{[%clk 0:00:22.4]} 53. Kd3 {[%clk 0:00:21.9]} 53... Bb4 {[%clk 0:00:21.8]} 54.
Kc4 {[%clk 0:00:21.6]} 54... a5 {[%clk 0:00:22.4]} 55. Kd4 {[%clk 0:00:21.2]}
55... Kf5 {[%clk 0:00:21.4]} 56. Kd5 {[%clk 0:00:20.2]} 56... Kf4 {[%clk
0:00:21.7]} 57. Kd4 {[%clk 0:00:20.4]} 57... Kf3 {[%clk 0:00:22.3]} 58. Kd3
{[%clk 0:00:20.6]} 58... Kf2 {[%clk 0:00:22.8]} 59. Kc2 {[%clk 0:00:20.4]} 59...
Ke2 {[%clk 0:00:23.2]} 60. Kb2 {[%clk 0:00:20.2]} 60... Kd2 {[%clk 0:00:23.9]}
61. Ka2 {[%clk 0:00:19.9]} 61... Kc2 {[%clk 0:00:24.6]} 62. Ka1 {[%clk
0:00:19.6]} 62... Kxb3 {[%clk 0:00:25.3]} 63. Kb1 {[%clk 0:00:19.5]} 63... Kxa4
{[%clk 0:00:26.1]} 64. Kc2 {[%clk 0:00:19.4]} 64... Ka3 {[%clk 0:00:26]} 0-1

[Event "Late-Titled-Tuesday-Blitz-November-28-2023"]
[Site "Chess.com"]
[Date "2023.11.28"]
[Round "5"]
[White "venturov"]
[Black "Good_Knight_Kiss"]
[Result "1/2-1/2"]
[WhiteElo "2477"]
[BlackElo "2317"]
[TimeControl "180+1"]
[EndTime "14:54:16 PST"]
[Termination "Game drawn by repetition"]

1. Nf3 {[%clk 0:03:00.9]} 1... Nf6 {[%clk 0:02:54.9]} 2. g3 {[%clk 0:03:00.9]}
2... g6 {[%clk 0:02:54.2]} 3. Bg2 {[%clk 0:02:58.9]} 3... Bg7 {[%clk 0:02:53.2]}
4. O-O {[%clk 0:02:59.3]} 4... O-O {[%clk 0:02:49.9]} 5. d4 {[%clk 0:02:55.6]}
5... d6 {[%clk 0:02:49.4]} 6. c4 {[%clk 0:02:55.6]} 6... Nbd7 {[%clk 0:02:47.3]}
7. Nc3 {[%clk 0:02:55.1]} 7... e5 {[%clk 0:02:46.4]} 8. h3 {[%clk 0:02:53.4]}
8... c6 {[%clk 0:02:46.2]} 9. e4 {[%clk 0:02:53.1]} 9... Qb6 {[%clk 0:02:46.1]}
10. Be3 {[%clk 0:02:51.8]} 10... Qxb2 {[%clk 0:02:42.8]} 11. Qb3 {[%clk
0:02:48.4]} 11... Qxb3 {[%clk 0:02:39.8]} 12. axb3 {[%clk 0:02:49.3]} 12... exd4
{[%clk 0:02:30.9]} 13. Nxd4 {[%clk 0:02:47.7]} 13... Re8 {[%clk 0:02:24.1]} 14.
Nde2 {[%clk 0:02:19.3]} 14... Nc5 {[%clk 0:02:04.3]} 15. Bxc5 {[%clk 0:02:19.2]}
15... dxc5 {[%clk 0:02:03.5]} 16. f4 {[%clk 0:02:19.8]} 16... Nd7 {[%clk
0:01:02.3]} 17. e5 {[%clk 0:02:16.8]} 17... f6 {[%clk 0:00:51.5]} 18. exf6
{[%clk 0:02:03.1]} 18... Nxf6 {[%clk 0:00:50]} 19. g4 {[%clk 0:01:47]} 19... Be6
{[%clk 0:00:27.3]} 20. Rac1 {[%clk 0:01:35.9]} 20... Rad8 {[%clk 0:00:24.2]} 21.
f5 {[%clk 0:01:22]} 21... gxf5 {[%clk 0:00:25.1]} 22. gxf5 {[%clk 0:01:22.4]}
22... Bc8 {[%clk 0:00:21.2]} 23. Ng3 {[%clk 0:01:19.7]} 23... Rd3 {[%clk
0:00:13.5]} 24. Rf3 {[%clk 0:01:02.5]} 24... Rxf3 {[%clk 0:00:13.7]} 25. Bxf3
{[%clk 0:01:03.2]} 25... Re3 {[%clk 0:00:14.1]} 26. Kf2 {[%clk 0:01:03.4]} 26...
Ng4+ {[%clk 0:00:05.3]} 27. hxg4 {[%clk 0:00:54.8]} 27... Rxc3 {[%clk
0:00:05.4]} 28. Rxc3 {[%clk 0:00:52]} 28... Bxc3 {[%clk 0:00:06.3]} 29. Ne4
{[%clk 0:00:47.7]} 29... Bd4+ {[%clk 0:00:06.3]} 30. Ke2 {[%clk 0:00:47.9]}
30... b5 {[%clk 0:00:05.2]} 31. Kd3 {[%clk 0:00:26.3]} 31... a5 {[%clk
0:00:05.2]} 32. Nd6 {[%clk 0:00:25]} 32... Bd7 {[%clk 0:00:04.1]} 33. g5 {[%clk
0:00:14.4]} 33... a4 {[%clk 0:00:04]} 34. bxa4 {[%clk 0:00:14.8]} 34... bxa4
{[%clk 0:00:03.4]} 35. Kc2 {[%clk 0:00:14.9]} 35... Kf8 {[%clk 0:00:02]} 36. f6
{[%clk 0:00:12.8]} 36... Be5 {[%clk 0:00:01.6]} 37. Ne4 {[%clk 0:00:11.8]} 37...
Bf4 {[%clk 0:00:01.7]} 38. Nxc5 {[%clk 0:00:08.6]} 38... Bf5+ {[%clk 0:00:02]}
39. Kb2 {[%clk 0:00:08.5]} 39... Bxg5 {[%clk 0:00:02.5]} 40. Bxc6 {[%clk
0:00:08.5]} 40... Bxf6+ {[%clk 0:00:02.8]} 41. Ka2 {[%clk 0:00:06.8]} 41... a3
{[%clk 0:00:01.6]} 42. Ne4 {[%clk 0:00:05.5]} 42... Be7 {[%clk 0:00:01.6]} 43.
c5 {[%clk 0:00:04.6]} 43... Bxe4 {[%clk 0:00:01.4]} 44. Bxe4 {[%clk 0:00:05.5]}
44... Bxc5 {[%clk 0:00:01.5]} 45. Bxh7 {[%clk 0:00:06.4]} 45... Ke7 {[%clk
0:00:01.5]} 46. Bc2 {[%clk 0:00:07.3]} 46... Kd6 {[%clk 0:00:02]} 47. Bb3 {[%clk
0:00:08.2]} 47... Ke5 {[%clk 0:00:02.5]} 48. Bd1 {[%clk 0:00:08.8]} 48... Kd4
{[%clk 0:00:03.1]} 49. Bb3 {[%clk 0:00:09.4]} 49... Kc3 {[%clk 0:00:03.6]} 50.
Be6 {[%clk 0:00:07.9]} 50... Bd6 {[%clk 0:00:03.9]} 51. Bb3 {[%clk 0:00:08.8]}
51... Be7 {[%clk 0:00:04.4]} 52. Be6 {[%clk 0:00:09.4]} 52... Bd6 {[%clk
0:00:05.3]} 53. Bg8 {[%clk 0:00:10]} 53... Be7 {[%clk 0:00:06.2]} 54. Bf7 {[%clk
0:00:10.9]} 54... Bd6 {[%clk 0:00:07.1]} 55. Bg8 {[%clk 0:00:11.8]} 55... Be7
{[%clk 0:00:08]} 56. Be6 {[%clk 0:00:11.9]} 56... Bd6 {[%clk 0:00:08.9]} 1/2-1/2

[Event "Late-Titled-Tuesday-Blitz-November-28-2023"]
[Site "Chess.com"]
[Date "2023.11.28"]
[Round "5"]
[White "Angry_Twin"]
[Black "vi_pranav"]
[Result "1-0"]
[WhiteElo "2960"]
[BlackElo "3052"]
[TimeControl "180+1"]
[EndTime "14:54:17 PST"]
[Termination "Angry_Twin won by resignation"]

1. e4 {[%clk 0:03:00.9]} 1... e5 {[%clk 0:02:59.5]} 2. Nf3 {[%clk 0:03:01.1]}
2... Nc6 {[%clk 0:03:00.2]} 3. Bc4 {[%clk 0:03:01.8]} 3... Nf6 {[%clk
0:03:00.1]} 4. d3 {[%clk 0:03:02.2]} 4... h6 {[%clk 0:03:00.1]} 5. c3 {[%clk
0:03:02.4]} 5... d6 {[%clk 0:02:59.8]} 6. O-O {[%clk 0:03:02.6]} 6... g6 {[%clk
0:03:00.2]} 7. Re1 {[%clk 0:03:01.1]} 7... Bg7 {[%clk 0:03:00.4]} 8. Bb3 {[%clk
0:03:01.3]} 8... O-O {[%clk 0:03:00.9]} 9. h3 {[%clk 0:03:01]} 9... Be6 {[%clk
0:03:01]} 10. d4 {[%clk 0:02:59.3]} 10... Bxb3 {[%clk 0:02:59]} 11. Qxb3 {[%clk
0:03:00.2]} 11... exd4 {[%clk 0:02:47]} 12. cxd4 {[%clk 0:02:58.9]} 12... Re8
{[%clk 0:02:42.4]} 13. Nc3 {[%clk 0:02:57.6]} 13... Qd7 {[%clk 0:02:26.2]} 14.
Bf4 {[%clk 0:02:52.3]} 14... Nh5 {[%clk 0:02:17.5]} 15. Be3 {[%clk 0:02:51]}
15... a6 {[%clk 0:02:17.3]} 16. Rad1 {[%clk 0:02:50.5]} 16... b5 {[%clk
0:02:14]} 17. e5 {[%clk 0:02:42.2]} 17... Na5 {[%clk 0:01:59.3]} 18. Qc2 {[%clk
0:02:39.7]} 18... Nc4 {[%clk 0:01:58.4]} 19. g4 {[%clk 0:02:14.9]} 19... dxe5
{[%clk 0:01:38.6]} 20. dxe5 {[%clk 0:02:09.3]} 20... Qe6 {[%clk 0:01:37.7]} 21.
Qe2 {[%clk 0:01:42.1]} 21... g5 {[%clk 0:01:19.6]} 22. Nd5 {[%clk 0:01:31.8]}
22... Rac8 {[%clk 0:01:13.8]} 23. gxh5 {[%clk 0:01:06.1]} 23... Qxh3 {[%clk
0:01:12.2]} 24. Nh2 {[%clk 0:00:27.4]} 24... Nxe5 {[%clk 0:01:07.2]} 25. f4
{[%clk 0:00:25]} 25... Nc4 {[%clk 0:01:02.1]} 26. Qg4 {[%clk 0:00:22.4]} 26...
Qxg4+ {[%clk 0:00:27.4]} 27. Nxg4 {[%clk 0:00:23.3]} 27... Re6 {[%clk
0:00:19.7]} 28. f5 {[%clk 0:00:20]} 28... Rxe3 {[%clk 0:00:07.7]} 29. Ndxe3
{[%clk 0:00:19.8]} 29... Nxb2 {[%clk 0:00:06.3]} 30. Rd7 {[%clk 0:00:20]} 30...
Nc4 {[%clk 0:00:03.5]} 31. Nxc4 {[%clk 0:00:19.3]} 31... bxc4 {[%clk 0:00:04.4]}
32. f6 {[%clk 0:00:20]} 32... Bf8 {[%clk 0:00:04.5]} 33. Rc1 {[%clk 0:00:20.5]}
33... c5 {[%clk 0:00:02.1]} 34. Rxc4 {[%clk 0:00:20.7]} 34... Re8 {[%clk
0:00:02.9]} 35. Kf2 {[%clk 0:00:17.8]} 35... Re6 {[%clk 0:00:03.2]} 36. Rd8
{[%clk 0:00:17.3]} 36... a5 {[%clk 0:00:02.7]} 37. Nxh6+ {[%clk 0:00:17.1]}
37... Kh7 {[%clk 0:00:03.3]} 38. Rxf8 {[%clk 0:00:17.7]} 38... Rxf6+ {[%clk
0:00:03.3]} 39. Kg3 {[%clk 0:00:18.1]} 39... Kxh6 {[%clk 0:00:03.9]} 40. Rxc5
{[%clk 0:00:18.4]} 40... Rf1 {[%clk 0:00:04.4]} 41. Rg8 {[%clk 0:00:15.8]} 41...
f6 {[%clk 0:00:03.2]} 42. Rh8+ {[%clk 0:00:16]} 42... Kg7 {[%clk 0:00:03.6]} 43.
Rcc8 {[%clk 0:00:16.8]} 43... f5 {[%clk 0:00:03.1]} 44. h6+ {[%clk 0:00:17]}
44... Kg6 {[%clk 0:00:03.7]} 45. Rc6+ {[%clk 0:00:15.5]} 45... Kh5 {[%clk
0:00:03.4]} 46. h7 {[%clk 0:00:16]} 46... f4+ {[%clk 0:00:02.3]} 47. Kg2 {[%clk
0:00:16.2]} 47... Rd1 {[%clk 0:00:02.7]} 48. Rg8 {[%clk 0:00:16.1]} 48... Rd2+
{[%clk 0:00:02.5]} 49. Kf1 {[%clk 0:00:16.3]} 49... Rd1+ {[%clk 0:00:02.5]} 50.
Ke2 {[%clk 0:00:16.3]} 1-0

[Event "Late-Titled-Tuesday-Blitz-November-28-2023"]
[Site "Chess.com"]
[Date "2023.11.28"]
[Round "5"]
[White "NoHeThTo"]
[Black "Rakitic2010"]
[Result "0-1"]
[WhiteElo "2678"]
[BlackElo "2472"]
[TimeControl "180+1"]
[EndTime "14:54:17 PST"]
[Termination "Rakitic2010 won by checkmate"]

1. d4 {[%clk 0:02:49.4]} 1... Nf6 {[%clk 0:02:58.7]} 2. Nc3 {[%clk 0:02:49.7]}
2... d5 {[%clk 0:02:56.7]} 3. Bf4 {[%clk 0:02:49.4]} 3... a6 {[%clk 0:02:52.9]}
4. e3 {[%clk 0:02:49.5]} 4... b5 {[%clk 0:02:50.8]} 5. Bd3 {[%clk 0:02:49]} 5...
e6 {[%clk 0:02:49.4]} 6. Nf3 {[%clk 0:02:49.3]} 6... Bb7 {[%clk 0:02:48.6]} 7.
O-O {[%clk 0:02:48.9]} 7... Nbd7 {[%clk 0:02:49]} 8. Ne2 {[%clk 0:02:48.9]} 8...
c5 {[%clk 0:02:47.9]} 9. c3 {[%clk 0:02:49.4]} 9... Be7 {[%clk 0:02:48]} 10. Ne5
{[%clk 0:02:49.2]} 10... O-O {[%clk 0:02:47.8]} 11. h3 {[%clk 0:02:46.7]} 11...
c4 {[%clk 0:02:47.6]} 12. Bc2 {[%clk 0:02:46.7]} 12... b4 {[%clk 0:02:48]} 13.
Bh2 {[%clk 0:02:44.6]} 13... Nxe5 {[%clk 0:02:47]} 14. Bxe5 {[%clk 0:02:44.1]}
14... Nd7 {[%clk 0:02:47.6]} 15. Bh2 {[%clk 0:02:44.2]} 15... a5 {[%clk
0:02:47.2]} 16. Nf4 {[%clk 0:02:41.3]} 16... g6 {[%clk 0:02:35.7]} 17. f3 {[%clk
0:02:33.7]} 17... Bg5 {[%clk 0:01:54.7]} 18. Qe2 {[%clk 0:02:21.4]} 18... Bc6
{[%clk 0:01:51.7]} 19. g4 {[%clk 0:02:20.3]} 19... Qe7 {[%clk 0:01:41.2]} 20. e4
{[%clk 0:02:19.4]} 20... dxe4 {[%clk 0:01:28.8]} 21. fxe4 {[%clk 0:02:18.4]}
21... e5 {[%clk 0:01:28.6]} 22. Qxc4 {[%clk 0:01:36.1]} 22... Rac8 {[%clk
0:01:07.7]} 23. Nd5 {[%clk 0:01:33.5]} 23... Bxd5 {[%clk 0:01:04.6]} 24. Qxd5
{[%clk 0:01:34.4]} 24... Be3+ {[%clk 0:01:00.6]} 25. Kh1 {[%clk 0:01:29.8]}
25... exd4 {[%clk 0:01:00.7]} 26. Bd6 {[%clk 0:01:20.3]} 26... Qh4 {[%clk
0:00:58.3]} 27. Kg2 {[%clk 0:01:20.1]} 27... Nf6 {[%clk 0:00:47.2]} 28. Qe5
{[%clk 0:01:04.2]} 28... Nd7 {[%clk 0:00:44.3]} 29. Qd5 {[%clk 0:00:53.3]} 29...
Nf6 {[%clk 0:00:35.7]} 30. Qb7 {[%clk 0:00:46.5]} 30... Rfd8 {[%clk 0:00:20.6]}
31. e5 {[%clk 0:00:35.5]} 31... Nxg4 {[%clk 0:00:19.7]} 32. Qxf7+ {[%clk
0:00:32.9]} 32... Kh8 {[%clk 0:00:20.2]} 33. Be7 {[%clk 0:00:27.8]} 33... Bg5
{[%clk 0:00:11.7]} 34. Bxd8 {[%clk 0:00:17.6]} 34... Ne3+ {[%clk 0:00:10.8]} 35.
Kh2 {[%clk 0:00:17.5]} 35... Rxd8 {[%clk 0:00:09.9]} 36. Bb3 {[%clk 0:00:15.6]}
36... Ng4+ {[%clk 0:00:10.1]} 37. Kg2 {[%clk 0:00:13.8]} 37... Ne3+ {[%clk
0:00:08.5]} 38. Kf3 {[%clk 0:00:06.1]} 38... Qxh3+ {[%clk 0:00:07.4]} 39. Ke4
{[%clk 0:00:06.4]} 39... Qg2+ {[%clk 0:00:06.2]} 40. Kd3 {[%clk 0:00:03]} 40...
dxc3+ {[%clk 0:00:06]} 41. Bd5 {[%clk 0:00:02.1]} 41... Rxd5+ {[%clk 0:00:05.6]}
42. Qxd5 {[%clk 0:00:02.5]} 42... Qxd5+ {[%clk 0:00:05.9]} 43. Ke2 {[%clk
0:00:03.4]} 43... Qd2+ {[%clk 0:00:06]} 44. Kf3 {[%clk 0:00:02.3]} 44... Nxf1
{[%clk 0:00:06.9]} 45. Rxf1 {[%clk 0:00:01.8]} 45... Qd3+ {[%clk 0:00:07.3]} 46.
Kg4 {[%clk 0:00:02.7]} 46... Qxf1 {[%clk 0:00:07.9]} 47. Kxg5 {[%clk 0:00:03.2]}
47... Qf5+ {[%clk 0:00:08.1]} 48. Kh6 {[%clk 0:00:03.5]} 48... Qf4# {[%clk
0:00:09]} 0-1

[Event "Late-Titled-Tuesday-Blitz-November-28-2023"]
[Site "Chess.com"]
[Date "2023.11.28"]
[Round "5"]
[White "melissa_guez"]
[Black "The_Princess_Moon"]
[Result "1/2-1/2"]
[WhiteElo "2249"]
[BlackElo "2389"]
[TimeControl "180+1"]
[EndTime "14:54:21 PST"]
[Termination "Game drawn by repetition"]

1. e4 {[%clk 0:02:54.5]} 1... c5 {[%clk 0:03:00.9]} 2. Nf3 {[%clk 0:02:52.2]}
2... a6 {[%clk 0:03:01.3]} 3. c4 {[%clk 0:02:49.3]} 3... Nc6 {[%clk 0:03:00.1]}
4. d4 {[%clk 0:02:49.1]} 4... cxd4 {[%clk 0:03:01]} 5. Nxd4 {[%clk 0:02:49.4]}
5... Nxd4 {[%clk 0:03:01.9]} 6. Qxd4 {[%clk 0:02:49.1]} 6... d6 {[%clk
0:03:02.8]} 7. Nc3 {[%clk 0:02:48.7]} 7... Nf6 {[%clk 0:03:03.2]} 8. Be2 {[%clk
0:02:48.1]} 8... g6 {[%clk 0:03:03.5]} 9. O-O {[%clk 0:02:48.2]} 9... Bg7 {[%clk
0:03:04]} 10. Qd3 {[%clk 0:02:45.5]} 10... O-O {[%clk 0:03:04.6]} 11. Be3 {[%clk
0:02:41.2]} 11... Be6 {[%clk 0:03:04.9]} 12. f3 {[%clk 0:02:38]} 12... Qa5
{[%clk 0:03:03.8]} 13. Rac1 {[%clk 0:02:35.6]} 13... Rfc8 {[%clk 0:03:02.8]} 14.
b3 {[%clk 0:02:34.4]} 14... Nd7 {[%clk 0:02:49.4]} 15. f4 {[%clk 0:02:26.8]}
15... Nc5 {[%clk 0:02:43.7]} 16. Bxc5 {[%clk 0:02:11.7]} 16... Qxc5+ {[%clk
0:02:35.8]} 17. Kh1 {[%clk 0:02:11.8]} 17... Bxc3 {[%clk 0:02:32.3]} 18. Rxc3
{[%clk 0:02:06.7]} 18... b5 {[%clk 0:02:31.1]} 19. f5 {[%clk 0:02:05.8]} 19...
Bd7 {[%clk 0:02:28.1]} 20. Qf3 {[%clk 0:01:58.7]} 20... Be8 {[%clk 0:02:17.7]}
21. Rfc1 {[%clk 0:01:38.1]} 21... b4 {[%clk 0:02:06.9]} 22. Re3 {[%clk
0:01:35.1]} 22... Qe5 {[%clk 0:02:04.2]} 23. Rf1 {[%clk 0:01:26.9]} 23... a5
{[%clk 0:01:57.9]} 24. Qg4 {[%clk 0:01:19.3]} 24... a4 {[%clk 0:01:40.1]} 25.
Qh4 {[%clk 0:01:01.3]} 25... Rc7 {[%clk 0:01:25.9]} 26. Rh3 {[%clk 0:00:57.1]}
26... Qg7 {[%clk 0:01:17.7]} 27. e5 {[%clk 0:00:42.1]} 27... dxe5 {[%clk
0:01:10.2]} 28. Bf3 {[%clk 0:00:42.3]} 28... Bc6 {[%clk 0:00:49.7]} 29. Bxc6
{[%clk 0:00:40.7]} 29... Rxc6 {[%clk 0:00:50.3]} 30. Qxe7 {[%clk 0:00:40.7]}
30... Qf8 {[%clk 0:00:37.8]} 31. Qxe5 {[%clk 0:00:39.2]} 31... Re8 {[%clk
0:00:35.6]} 32. Qd5 {[%clk 0:00:25.9]} 32... Rd6 {[%clk 0:00:29.4]} 33. Qf3
{[%clk 0:00:16.4]} 33... axb3 {[%clk 0:00:23.9]} 34. axb3 {[%clk 0:00:16.1]}
34... Red8 {[%clk 0:00:20]} 35. f6 {[%clk 0:00:15.9]} 35... Rd2 {[%clk
0:00:17.1]} 36. Qg3 {[%clk 0:00:15.9]} 36... Rd1 {[%clk 0:00:16.5]} 37. Qf3
{[%clk 0:00:13.8]} 37... Rxf1+ {[%clk 0:00:16.2]} 38. Qxf1 {[%clk 0:00:14.7]}
38... Qd6 {[%clk 0:00:16]} 39. Rf3 {[%clk 0:00:14.4]} 39... h5 {[%clk
0:00:15.2]} 40. g3 {[%clk 0:00:13.9]} 40... Qd4 {[%clk 0:00:15.2]} 41. Kg2
{[%clk 0:00:13.1]} 41... Rd6 {[%clk 0:00:15.3]} 42. Qf2 {[%clk 0:00:12.7]} 42...
Qe4 {[%clk 0:00:15.3]} 43. Qf1 {[%clk 0:00:09.3]} 43... Rxf6 {[%clk 0:00:14.8]}
44. h4 {[%clk 0:00:09.1]} 44... Rxf3 {[%clk 0:00:14.4]} 45. Qxf3 {[%clk
0:00:10]} 45... Qc2+ {[%clk 0:00:14.2]} 46. Kh3 {[%clk 0:00:09.3]} 46... Qc3
{[%clk 0:00:13.5]} 47. Qa8+ {[%clk 0:00:07.5]} 47... Kg7 {[%clk 0:00:12.9]} 48.
Qd8 {[%clk 0:00:07.6]} 48... Qxb3 {[%clk 0:00:10.9]} 49. Qd4+ {[%clk 0:00:07.7]}
49... Kh7 {[%clk 0:00:10.9]} 50. Qd5 {[%clk 0:00:06.5]} 50... Kg7 {[%clk
0:00:08.4]} 51. Qd4+ {[%clk 0:00:06.7]} 51... Kg8 {[%clk 0:00:08.3]} 52. Qd8+
{[%clk 0:00:05.4]} 52... Kh7 {[%clk 0:00:08.3]} 53. Qd5 {[%clk 0:00:05.7]} 53...
Kg7 {[%clk 0:00:07.5]} 54. Qd4+ {[%clk 0:00:06]} 1/2-1/2